bitfinex-derivatives/quotes_BTCF0:USTF0_20251217
["timestamp","ask_amount","ask_price","bid_price","bid_amount"]
[1765954981479,0.02661826,86817.0,86816.0,0.36467272]
[1765954983879,0.16827826,86817.0,86816.0,0.36467272]
[1765954984470,0.02661826,86817.0,86816.0,0.36467272]
[1765954984867,0.2858413,86824.0,86823.0,0.28218]
[1765954985077,0.31297269,86824.0,86823.0,0.28218]
[1765954986175,0.31497269,86824.0,86823.0,0.28218]
[1765954986379,0.30345139,86824.0,86823.0,0.28218]
[1765954986777,0.31497259,86824.0,86823.0,0.14563]
[1765954986971,0.31497259,86824.0,86817.0,0.011522]
[1765954986972,0.27432,86817.0,86816.0,0.38306492]
[1765954987172,0.30145139,86817.0,86816.0,0.38306492]
[1765954988680,0.30145139,86817.0,86816.0,0.38406492]
[1765954988983,0.30145139,86817.0,86816.0,0.38506492]
[1765954989285,0.30145139,86817.0,86816.0,0.38406492]
[1765954989583,0.30145139,86817.0,86816.0,0.38506492]
[1765954990083,0.30145139,86817.0,86816.0,0.38406492]
[1765954990284,0.30145139,86817.0,86816.0,0.38506492]
[1765954990782,0.30145139,86817.0,86816.0,0.28435272]
[1765954990988,0.66225139,86817.0,86816.0,0.28435272]
[1765954991879,0.66225139,86817.0,86816.0,0.00217272]
[1765954992285,0.66225139,86817.0,86816.0,0.00117272]
[1765954992487,0.66225139,86817.0,86816.0,0.00017272]
[1765954992689,0.66224674,86817.0,86816.0,0.00117272]
[1765954994074,0.27432,86804.0,86803.0,0.28227306]
[1765954994274,0.30144674,86804.0,86803.0,0.28227306]
[1765954995191,0.31297054,86804.0,86803.0,0.28227306]
[1765954995390,0.31297054,86804.0,86803.0,0.28627306]
[1765954996192,0.30144674,86804.0,86803.0,0.28627306]
[1765955000691,0.02712674,86804.0,86803.0,0.28627306]
[1765955001992,0.00017272,86812.0,86811.0,0.2937029]
[1765955002392,0.00017272,86812.0,86811.0,0.6545029]
[1765955002989,0.00017272,86812.0,86811.0,0.6555029]
[1765955003796,0.00017272,86812.0,86811.0,0.6565029]
[1765955008192,0.06208329,86838.0,86834.0,0.2936999]
[1765955008391,0.49812,86836.0,86835.0,0.36658]
[1765955008586,0.63512,86836.0,86835.0,0.36658]
[1765955008792,0.3608,86836.0,86835.0,0.36658]
[1765955008994,0.49812,86836.0,86835.0,0.36658]
[1765955009184,0.3608,86836.0,86835.0,0.36658]
[1765955009686,0.27449272,86844.0,86843.0,0.28218]
[1765955009892,0.28601122,86844.0,86843.0,0.28218]
[1765955010092,0.27449272,86844.0,86843.0,0.28218]
[1765955010494,0.27449272,86844.0,86843.0,0.2936987]
[1765955011000,0.27749272,86844.0,86843.0,0.2936987]
[1765955011495,0.00317272,86844.0,86843.0,0.2936987]
[1765955011999,0.14349272,86844.0,86843.0,0.2936987]
[1765955013900,0.28049272,86844.0,86843.0,0.2936987]
[1765955021517,0.28049272,86844.0,86843.0,1.0138987]
[1765955024519,0.00617272,86844.0,86843.0,1.0138987]
[1765955027716,0.00617272,86844.0,86843.0,1.3746987]
[1765955027920,0.29244272,86844.0,86843.0,1.3746987]
[1765955028109,0.00617272,86844.0,86843.0,1.3746987]
[1765955030417,0.29244272,86844.0,86843.0,1.3746987]
[1765955030618,0.14466272,86844.0,86843.0,1.3746987]
[1765955031718,0.29244272,86844.0,86843.0,1.3746987]
[1765955032709,0.14466272,86844.0,86843.0,1.3746987]
[1765955032914,0.00617272,86844.0,86843.0,1.3746987]
[1765955033310,0.14466272,86844.0,86843.0,1.3746987]
[1765955034618,0.14466272,86844.0,86843.0,1.00238]
[1765955034822,0.14466272,86844.0,86835.0,0.0844]
[1765955034823,0.28627,86836.0,86835.0,0.3863697]
[1765955035019,0.28627,86836.0,86835.0,0.37485]
[1765955035323,0.13849,86836.0,86835.0,0.37485]
[1765955036022,0.14049,86836.0,86835.0,0.37485]
[1765955036222,0.29027,86836.0,86835.0,0.37485]
[1765955036522,0.31614048,86836.0,86835.0,0.29045]
[1765955037008,0.2977907,86828.0,86827.0,0.29062272]
[1765955037209,0.32366118,86828.0,86827.0,0.29062272]
[1765955038221,0.32466118,86828.0,86827.0,0.29062272]
[1765955038426,0.32466118,86828.0,86827.0,0.00017272]
[1765955038728,0.32566118,86828.0,86827.0,0.00017272]
[1765955041328,0.32566118,86828.0,86827.0,0.15032272]
[1765955042029,0.68646118,86828.0,86827.0,0.15032272]
[1765955042430,0.68646118,86828.0,86827.0,0.00017272]
[1765955042730,0.68646118,86828.0,86827.0,0.29062272]
[1765955043528,0.68646118,86828.0,86827.0,0.00017272]
[1765955043831,0.0115232,86809.0,86807.0,0.65125]
[1765955044023,0.28627,86808.0,86807.0,0.29045]
[1765955044429,0.28473,86804.0,86803.0,0.28504306]
[1765955045319,0.00017272,86812.0,86803.0,0.28504306]
[1765955045320,0.296253,86811.0,86810.0,0.28495]
[1765955045531,0.32207211,86811.0,86810.0,0.28495]
[1765955045924,0.31054911,86811.0,86810.0,0.28495]
[1765955046523,0.00017272,86812.0,86811.0,0.2964729]
[1765955047535,0.28490272,86812.0,86811.0,0.28495]
[1765955048034,0.28490272,86812.0,86811.0,0.28595]
[1765955048430,0.28490272,86812.0,86811.0,0.28495]
[1765955048734,0.28490272,86812.0,86811.0,0.2974729]
[1765955049239,0.28490272,86812.0,86811.0,0.2984729]
[1765955049826,0.28490272,86812.0,86811.0,0.28695]
[1765955050035,0.28490272,86812.0,86811.0,0.28495]
[1765955050337,0.28490272,86812.0,86811.0,0.28695]
[1765955050724,0.28490272,86812.0,86811.0,0.28595]
[1765955050925,0.28490272,86812.0,86811.0,0.28695]
[1765955051334,0.28490272,86812.0,86811.0,0.28595]
[1765955051535,0.28490272,86812.0,86811.0,0.28695]
[1765955052241,0.08008913,86821.0,86811.0,0.28695]
[1765955052242,0.64553,86854.0,86850.0,0.08783]
[1765955052440,0.16363042,86853.0,86852.0,0.28495]
[1765955052630,0.31052042,86853.0,86852.0,0.28495]
[1765955053434,0.28473,86853.0,86852.0,0.28495]
[1765955053642,0.28673,86853.0,86852.0,0.28495]
[1765955054736,0.28873,86853.0,86852.0,0.28495]
[1765955059244,0.31451916,86853.0,86852.0,0.28495]
[1765955061337,0.28873,86853.0,86852.0,0.28495]
[1765955062553,0.28873,86853.0,86852.0,0.2964675]
[1765955062848,0.28873,86853.0,86852.0,0.28495]
[1765955070460,0.004,86853.0,86852.0,0.28495]
[1765955070856,0.14184,86853.0,86852.0,0.28495]
[1765955071555,0.28873,86853.0,86852.0,0.28495]
[1765955072549,0.28873,86853.0,86844.0,0.37295272]
[1765955072550,0.28473,86845.0,86844.0,0.37295272]
[1765955073955,0.28573,86845.0,86844.0,0.37295272]
[1765955074151,0.2982484,86845.0,86844.0,0.29664122]
[1765955077265,0.32406784,86845.0,86844.0,0.29664122]
[1765955077459,0.32406784,86845.0,86844.0,0.28512272]
[1765955078953,0.32406784,86845.0,86844.0,0.13795272]
[1765955079264,0.32406784,86845.0,86844.0,0.28955272]
[1765955079960,0.40710784,86845.0,86844.0,0.13795272]
[1765955080464,0.40710784,86845.0,86844.0,0.28955272]
[1765955081362,0.32406784,86845.0,86844.0,0.28955272]
[1765955083567,0.32306784,86845.0,86844.0,0.28955272]
[1765955084065,0.32206784,86845.0,86844.0,0.28955272]
[1765955085766,0.32306784,86845.0,86844.0,0.28955272]
[1765955086162,0.32206784,86845.0,86844.0,0.28955272]
[1765955087063,0.02581944,86845.0,86844.0,0.30107122]
[1765955088962,0.02581944,86845.0,86844.0,0.30307122]
[1765955089468,0.02581944,86845.0,86844.0,0.30207122]
[1765955090265,0.02581944,86845.0,86844.0,0.30107122]
[1765955090468,0.02581944,86845.0,86844.0,0.30207122]
[1765955092170,0.31078944,86845.0,86844.0,0.30207122]
[1765955092970,0.02581944,86845.0,86844.0,0.30207122]
[1765955093769,0.02581944,86845.0,86844.0,0.30107122]
[1765955093961,0.16932944,86845.0,86844.0,0.30207122]
[1765955094363,0.16932944,86845.0,86844.0,1.02367122]
[1765955094763,0.16932944,86845.0,86844.0,1.02267122]
[1765955097473,0.02581944,86845.0,86844.0,1.02267122]
[1765955100681,0.16932944,86845.0,86844.0,1.02267122]
[1765955100866,0.02581944,86845.0,86844.0,1.02267122]
[1765955102077,0.16932944,86845.0,86844.0,1.02267122]
[1765955102466,0.31078944,86845.0,86844.0,1.02267122]
[1765955106175,0.32230784,86845.0,86844.0,1.02267122]
[1765955106568,0.32230784,86845.0,86844.0,1.72067272]
[1765955106874,0.32230784,86845.0,86844.0,1.01115272]
[1765955107073,0.32230784,86845.0,86844.0,0.65035272]
[1765955107277,0.32230784,86845.0,86844.0,0.36097272]
[1765955108873,0.32330784,86845.0,86844.0,0.36097272]
[1765955109280,0.32430784,86845.0,86844.0,0.36097272]
[1765955109480,0.32430784,86845.0,86844.0,0.65566272]
[1765955110079,0.17132944,86845.0,86844.0,0.65566272]
[1765955110283,0.02681944,86845.0,86844.0,0.65566272]
[1765955110584,0.02781944,86845.0,86844.0,0.65566272]
[1765955111090,0.02681944,86845.0,86844.0,0.65566272]
[1765955111274,0.31338944,86845.0,86844.0,0.65566272]
[1765955112292,0.31238944,86845.0,86844.0,0.65666272]
[1765955115280,0.31238944,86845.0,86844.0,0.65566272]
[1765955115476,0.31238944,86845.0,86844.0,0.65666272]
[1765955116088,0.31238944,86845.0,86844.0,0.65566272]
[1765955116273,0.31238944,86845.0,86844.0,0.65666272]
[1765955117084,0.02581944,86845.0,86844.0,0.65666272]
[1765955117286,0.16655944,86845.0,86844.0,0.65666272]
[1765955118594,0.31238944,86845.0,86844.0,0.65666272]
[1765955118990,0.02581944,86845.0,86844.0,0.65666272]
[1765955121182,0.02581944,86845.0,86844.0,0.65566272]
[1765955121383,0.02581944,86845.0,86844.0,0.65666272]
[1765955126590,0.02581944,86845.0,86844.0,0.74379272]
[1765955128588,0.02581944,86845.0,86844.0,0.74279272]
[1765955128789,0.02581944,86845.0,86844.0,0.74379272]
[1765955130105,0.31238944,86845.0,86844.0,0.74379272]
[1765955130903,0.31238944,86845.0,86844.0,1.46355272]
[1765955131202,0.02581944,86845.0,86844.0,1.46355272]
[1765955131500,0.31238944,86845.0,86844.0,1.46355272]
[1765955136500,0.31238944,86845.0,86844.0,0.74379272]
[1765955137106,0.31251206,86845.0,86844.0,0.74379272]
[1765955143702,0.17409206,86845.0,86844.0,0.74379272]
[1765955143904,0.32148206,86845.0,86844.0,0.74379272]
[1765955144107,0.02594206,86845.0,86844.0,0.74379272]
[1765955147100,0.01743668,86845.0,86844.0,0.74379272]
[1765955147309,0.15045262,86858.0,86857.0,0.28022]
[1765955147612,0.29784262,86858.0,86857.0,0.64102]
[1765955148507,0.29884262,86858.0,86857.0,0.64102]
[1765955149212,0.29984262,86858.0,86857.0,0.64102]
[1765955150709,0.00430262,86858.0,86857.0,0.64102]
[1765955151009,0.15245262,86858.0,86857.0,0.64102]
[1765955151409,0.00430262,86858.0,86857.0,0.64102]
[1765955151715,0.00312982,86858.0,86857.0,0.64102]
[1765955155714,0.00236109,86858.0,86857.0,0.64102]
[1765955161018,1.09e-06,86858.0,86857.0,0.64102]
[1765955161606,3.81e-06,86861.0,86860.0,0.36543]
[1765955161810,3.81e-06,86861.0,86860.0,1.44591]
[1765955163217,0.00200381,86861.0,86860.0,1.44591]
[1765955164617,0.00300381,86861.0,86860.0,1.44591]
[1765955168015,0.28713381,86861.0,86860.0,1.44587]
[1765955168420,0.14087381,86861.0,86860.0,1.44587]
[1765955168620,0.00300381,86861.0,86860.0,1.44587]
[1765955169524,0.061966,86885.0,86883.0,0.28249]
[1765955169727,0.28413,86892.0,86891.0,0.28249]
[1765955169912,0.31019155,86892.0,86891.0,0.28249]
[1765955170220,0.31019155,86892.0,86891.0,0.79249]
[1765955171010,0.31019155,86892.0,86891.0,0.51]
[1765955171626,0.31419155,86892.0,86891.0,0.51]
[1765955171810,0.31819155,86892.0,86891.0,0.51]
[1765955172526,0.31819155,86892.0,86891.0,0.64898]
[1765955173727,0.31819155,86892.0,86891.0,0.51]
[1765955174425,0.31819155,86892.0,86891.0,0.79249]
[1765955178916,0.17193155,86892.0,86891.0,0.79249]
[1765955179124,0.03406155,86892.0,86891.0,1.15329]
[1765955179428,0.17193155,86892.0,86891.0,1.15329]
[1765955179628,0.00017272,86900.0,86899.0,0.2940012]
[1765955179831,0.13787,86916.0,86915.0,0.3591191]
[1765955180134,0.163953,86916.0,86915.0,0.3591191]
[1765955180427,0.026083,86916.0,86915.0,0.3591191]
[1765955180627,0.28413,86923.0,86922.0,0.3827681]
[1765955180817,0.31019346,86923.0,86922.0,0.7435681]
[1765955183232,0.31119346,86923.0,86922.0,0.7435681]
[1765955183438,0.16493346,86923.0,86922.0,0.7435681]
[1765955183630,0.02706346,86923.0,86922.0,0.7435681]
[1765955183835,0.00017261,86931.0,86922.0,0.7435681]
[1765955183836,2.61e-06,86931.0,86930.0,0.2939971]
[1765955184021,2.61e-06,86931.0,86930.0,1.0136771]
[1765955184430,3.11e-06,86938.0,86937.0,0.2939962]
[1765955184635,0.28413,86962.0,86961.0,0.382763]
[1765955184934,0.28413,86968.0,86967.0,0.2939922]
[1765955185126,0.28642945,86978.0,86977.0,0.13898]
[1765955185320,0.28413,86973.0,86972.0,0.2939915]
[1765955185518,0.28413,86973.0,86972.0,0.6547915]
[1765955186433,0.28413,86973.0,86972.0,0.64329]
[1765955186825,0.28413,86973.0,86972.0,0.64429]
[1765955187422,0.28413,86973.0,86972.0,0.64629]
[1765955187623,0.28413,86973.0,86972.0,1.08364]
[1765955188823,0.28413,86973.0,86972.0,1.08264]
[1765955189024,0.28413,86973.0,86972.0,1.08364]
[1765955189626,0.28413,86973.0,86972.0,1.08264]
[1765955189824,0.28413,86973.0,86972.0,1.08364]
[1765955190036,0.28413,86973.0,86972.0,1.08164]
[1765955190235,0.28413,86973.0,86972.0,0.002]
[1765955190625,0.28413,86973.0,86972.0,0.001]
[1765955190832,0.28413,86973.0,86972.0,0.002]
[1765955191928,0.28413,86973.0,86972.0,0.001]
[1765955192128,0.28413,86973.0,86972.0,0.002]
[1765955192829,0.68413,86973.0,86972.0,0.001]
[1765955193726,0.2956325,86965.0,86964.0,0.00017249]
[1765955195034,0.2956325,86965.0,86964.0,0.14618249]
[1765955195234,0.28413,86965.0,86964.0,0.29573249]
[1765955195539,0.28991,86974.0,86973.0,0.3060614]
[1765955195733,0.28991,86974.0,86973.0,0.6668614]
[1765955196732,0.14968945,86978.0,86977.0,0.3075509]
[1765955196938,0.29629945,86978.0,86977.0,0.3075509]
[1765955197538,0.00229945,86978.0,86977.0,0.3075509]
[1765955197737,0.29629945,86978.0,86977.0,0.29605]
[1765955197940,0.29629945,86978.0,86974.0,0.3608]
[1765955197941,0.294,86975.0,86974.0,0.65685]
[1765955198235,0.14968945,86978.0,86977.0,0.29705]
[1765955198432,0.29629945,86978.0,86977.0,0.29705]
[1765955199541,0.14968945,86978.0,86977.0,0.29705]
[1765955199934,0.14968945,86978.0,86977.0,0.29605]
[1765955200542,0.14968945,86978.0,86977.0,0.29705]
[1765955202435,0.00229945,86978.0,86977.0,0.29705]
[1765955203340,0.14968945,86978.0,86977.0,0.29705]
[1765955204134,0.29629945,86978.0,86977.0,0.29705]
[1765955208232,0.29629945,86978.0,86977.0,0.001]
[1765955208233,0.3222107,86978.0,86977.0,0.001]
[1765955209037,0.294,86965.0,86964.0,0.00017249]
[1765955209237,0.33141375,86965.0,86964.0,0.00017249]
[1765955210140,0.33145958,86965.0,86964.0,0.00017249]
[1765955210543,0.33145958,86965.0,86964.0,0.00117249]
[1765955211038,0.33145958,86965.0,86964.0,0.00017249]
[1765955211239,0.39310981,86965.0,86964.0,0.00117249]
[1765955211636,0.39310981,86965.0,86964.0,0.00217249]
[1765955212250,0.33145958,86965.0,86964.0,0.00117249]
[1765955212642,0.33145958,86965.0,86964.0,0.00017249]
[1765955212843,0.33145958,86965.0,86964.0,0.00117249]
[1765955213945,0.294,86946.0,86945.0,0.65685]
[1765955214145,0.31995708,86946.0,86945.0,0.65685]
[1765955215453,0.31995708,86946.0,86945.0,0.65785]
[1765955216155,0.31995708,86946.0,86945.0,0.65885]
[1765955216453,0.40199708,86946.0,86945.0,0.33772442]
[1765955216638,0.3055061,86938.0,86937.0,0.00017249]
[1765955216843,0.33146318,86938.0,86937.0,0.00017249]
[1765955217843,0.33146318,86938.0,86937.0,0.29622249]
[1765955218552,0.33246318,86938.0,86937.0,0.29622249]
[1765955219349,0.32095708,86938.0,86937.0,0.29622249]
[1765955219647,0.02695708,86938.0,86937.0,0.65802249]
[1765955219838,0.02595708,86938.0,86937.0,0.65902249]
[1765955220038,0.294,86946.0,86945.0,0.29605]
[1765955220238,0.32026252,86946.0,86945.0,0.29605]
[1765955222454,0.32026252,86946.0,86945.0,0.29805]
[1765955223048,0.32026252,86946.0,86945.0,0.29705]
[1765955223248,0.32026252,86946.0,86945.0,0.29805]
[1765955223846,0.32026252,86946.0,86945.0,0.002]
[1765955224260,0.2984761,86938.0,86937.0,0.00017249]
[1765955224456,0.32473862,86938.0,86937.0,0.00017249]
[1765955226348,1.04441862,86938.0,86937.0,0.13898249]
[1765955227061,1.04441862,86938.0,86937.0,0.28312249]
[1765955227646,1.04441862,86938.0,86937.0,0.00017249]
[1765955229152,1.07322651,86938.0,86937.0,0.00017249]
[1765955231759,1.07422651,86938.0,86937.0,0.00017249]
[1765955232659,1.07418651,86938.0,86937.0,0.00017249]
[1765955232961,1.07518651,86938.0,86937.0,0.00017249]
[1765955237861,1.07418651,86938.0,86937.0,0.28312249]
[1765955238056,1.07314651,86938.0,86937.0,0.28312249]
[1765955238251,0.35454651,86938.0,86937.0,0.28312249]
[1765955238469,1.07414651,86938.0,86937.0,0.28312249]
[1765955238650,0.35454651,86938.0,86937.0,0.28312249]
[1765955238959,0.35354651,86938.0,86937.0,0.28312249]
[1765955239464,0.35354651,86938.0,86937.0,0.00017249]
[1765955241165,0.35354651,86938.0,86937.0,0.28312249]
[1765955241364,1.07310651,86938.0,86937.0,0.28312249]
[1765955242670,1.07310651,86938.0,86937.0,0.13898249]
[1765955243967,1.07310651,86938.0,86930.0,0.3608]
[1765955244166,0.31196252,86937.0,86930.0,0.3608]
[1765955245163,0.31296252,86937.0,86930.0,0.3608]
[1765955245471,0.31396252,86937.0,86930.0,0.3608]
[1765955246070,0.31296252,86937.0,86930.0,0.3608]
[1765955247672,0.31396252,86937.0,86930.0,0.3608]
[1765955251374,0.31396252,86937.0,86928.0,0.00017249]
[1765955251375,0.31396252,86937.0,86929.0,0.3608]
[1765955253870,0.31296252,86937.0,86929.0,0.3608]
[1765955254380,0.31196252,86937.0,86936.0,0.28453927]
[1765955254579,0.31296252,86937.0,86936.0,0.28453927]
[1765955255281,0.31196252,86937.0,86936.0,0.28453927]
[1765955256476,1.03136252,86937.0,86936.0,0.28453927]
[1765955257372,0.02626252,86937.0,86936.0,0.28453927]
[1765955257579,0.00017249,86954.0,86936.0,0.28453927]
[1765955257580,0.292925,86947.0,86946.0,0.302925]
[1765955257874,0.35506154,86947.0,86946.0,0.29142]
[1765955258281,0.292925,86947.0,86946.0,0.29142]
[1765955259575,0.293925,86947.0,86946.0,0.29142]
[1765955260271,0.295925,86947.0,86946.0,0.29142]
[1765955261082,0.295925,86947.0,86944.0,0.3608]
[1765955261083,0.28142,86945.0,86944.0,0.3608]
[1765955262278,0.28242,86945.0,86944.0,0.3608]
[1765955262981,0.26478,86937.0,86936.0,0.00012927]
[1765955263187,0.2762873,86929.0,86916.0,0.096679]
[1765955263372,0.6370873,86929.0,86917.0,0.0115088]
[1765955263571,0.69914991,86929.0,86916.0,0.08517]
[1765955263881,0.2834889,86917.0,86916.0,0.37659]
[1765955264181,0.28361817,86917.0,86916.0,0.37659]
[1765955264978,0.28361817,86917.0,86916.0,0.37859]
[1765955265172,0.28361817,86917.0,86916.0,0.38059]
[1765955266585,0.28361817,86917.0,86916.0,0.37759]
[1765955267380,0.28361817,86917.0,86916.0,0.37659]
[1765955269480,0.30947957,86917.0,86916.0,0.37659]
[1765955272192,0.28142,86910.0,86908.0,0.00017249]
[1765955272390,0.28142,86910.0,86886.0,0.08517]
[1765955272391,0.2929312,86899.0,86898.0,0.00230156]
[1765955272692,0.2929312,86899.0,86862.0,0.08517]
[1765955272693,0.2929344,86875.0,86874.0,0.37667677]
[1765955272885,0.31888506,86875.0,86874.0,8.677e-05]
[1765955273085,0.2929352,86869.0,86868.0,0.08517]
[1765955273292,0.6795834,86869.0,86868.0,0.08517]
[1765955273900,0.292936,86863.0,86862.0,0.37659]
[1765955274100,0.292936,86863.0,86862.0,0.08517]
[1765955274402,0.292936,86863.0,86862.0,0.23421]
[1765955274803,0.292936,86863.0,86862.0,0.37659]
[1765955276707,0.292936,86863.0,86862.0,0.37759]
[1765955276904,0.292936,86863.0,86862.0,0.37859]
[1765955288416,0.3608,86869.0,86868.0,0.4161]
[1765955288618,0.330036,86863.0,86862.0,0.24024]
[1765955288819,0.330036,86863.0,86862.0,0.40884]
[1765955289514,0.330036,86863.0,86862.0,0.40784]
[1765955290519,0.330036,86863.0,86862.0,0.002]
[1765955290710,0.69097281,86863.0,86862.0,0.002]
[1765955291214,0.71693131,86863.0,86862.0,0.15507]
[1765955292118,1.43753131,86863.0,86862.0,0.15507]
[1765955293417,0.38689531,86863.0,86862.0,0.4181]
[1765955293621,0.36093681,86863.0,86862.0,0.4181]
[1765955293815,0.67945681,86863.0,86862.0,0.4181]
[1765955294622,0.69097281,86863.0,86862.0,0.002]
[1765955294813,0.71697871,86863.0,86862.0,0.15507]
[1765955295214,0.71697871,86863.0,86862.0,0.4181]
[1765955296310,0.71697871,86863.0,86862.0,0.09643]
[1765955296529,0.71697871,86863.0,86862.0,0.4181]
[1765955303828,1.10742271,86863.0,86862.0,0.4181]
[1765955304130,0.90565271,86863.0,86862.0,0.4181]
[1765955305734,1.06514271,86863.0,86862.0,0.4181]
[1765955306131,0.74662271,86863.0,86862.0,0.4181]
[1765955306431,0.02614271,86863.0,86862.0,0.4181]
[1765955308730,0.08822868,86863.0,86862.0,0.4181]
[1765955310232,0.02614271,86863.0,86862.0,0.4181]
[1765955313626,0.08262501,86882.0,86874.0,0.3331846]
[1765955313931,0.08005915,86884.0,86876.0,0.32167]
[1765955314324,0.0287532,86877.0,86876.0,0.32167]
[1765955314634,0.02883243,86877.0,86876.0,0.32167]
[1765955315336,0.02665993,86877.0,86876.0,0.32167]
[1765955315520,7.923e-05,86877.0,86876.0,0.32167]
[1765955315720,0.00107923,86877.0,86876.0,0.32167]
[1765955316926,0.30548923,86877.0,86876.0,0.32167]
[1765955318139,0.16010923,86877.0,86876.0,0.32167]
[1765955318531,0.00107923,86877.0,86876.0,0.32167]
[1765955320031,0.15768923,86877.0,86876.0,0.32167]
[1765955320433,0.30306923,86877.0,86876.0,0.32167]
[1765955325745,0.3284743,86877.0,86876.0,0.32167]
[1765955337749,0.3274743,86877.0,86876.0,0.32267]
[1765955338142,0.3274743,86877.0,86876.0,0.32367]
[1765955338753,0.3274743,86877.0,86876.0,0.32267]
[1765955339766,0.0254843,86877.0,86876.0,0.32267]
[1765955339949,0.0254843,86877.0,86876.0,0.32167]
[1765955340344,0.0254843,86877.0,86876.0,0.32267]
[1765955340744,0.0254843,86877.0,86876.0,0.32367]
[1765955340952,0.0254843,86877.0,86876.0,0.32467]
[1765955341345,0.3274743,86877.0,86876.0,0.32467]
[1765955341539,0.3274743,86877.0,86876.0,0.32367]
[1765955341739,0.3274743,86877.0,86876.0,0.32567]
[1765955343150,0.3274743,86877.0,86876.0,0.32367]
[1765955343449,0.3274743,86877.0,86876.0,0.32467]
[1765955343856,0.3274743,86877.0,86876.0,0.32367]
[1765955344042,0.3274743,86877.0,86876.0,0.32267]
[1765955344247,0.3274743,86877.0,86876.0,0.32367]
[1765955344954,0.3274743,86877.0,86876.0,0.32267]
[1765955345258,0.3274743,86877.0,86876.0,0.32367]
[1765955346552,0.3274743,86877.0,86876.0,0.32267]
[1765955346756,0.3274743,86877.0,86876.0,0.32367]
[1765955347149,0.3274743,86877.0,86876.0,0.32267]
[1765955347551,0.3274743,86877.0,86876.0,0.32367]
[1765955349460,0.3274743,86877.0,86876.0,0.32267]
[1765955349849,0.3274743,86877.0,86876.0,0.32367]
[1765955350159,0.3274743,86877.0,86876.0,0.32267]
[1765955350359,0.3274743,86877.0,86876.0,0.32367]
[1765955350562,0.3274743,86877.0,86876.0,0.32267]
[1765955350952,0.3274743,86877.0,86876.0,0.32167]
[1765955351152,0.3274743,86877.0,86876.0,0.32267]
[1765955351458,0.1820943,86877.0,86876.0,0.32267]
[1765955351853,0.3137643,86877.0,86876.0,0.32267]
[1765955354965,0.3137643,86877.0,86876.0,0.32167]
[1765955357055,0.3137643,86877.0,86876.0,0.83167]
[1765955360668,0.3137643,86877.0,86876.0,0.83367]
[1765955361068,0.1820943,86877.0,86876.0,0.83367]
[1765955361371,0.18194208,86877.0,86876.0,0.83367]
[1765955361555,0.02533208,86877.0,86876.0,0.83367]
[1765955362561,0.29228208,86877.0,86876.0,0.83367]
[1765955363670,0.29228208,86877.0,86876.0,0.83267]
[1765955363872,0.29228208,86877.0,86876.0,0.83367]
[1765955365270,0.29228208,86877.0,86876.0,0.83267]
[1765955365462,0.02533208,86877.0,86876.0,0.83367]
[1765955366357,0.02533208,86877.0,86876.0,0.83267]
[1765955366560,0.02533208,86877.0,86876.0,0.83367]
[1765955367270,0.02533208,86877.0,86876.0,0.83267]
[1765955367460,0.15983208,86877.0,86876.0,0.83367]
[1765955367658,0.15983208,86877.0,86876.0,0.83267]
[1765955367861,0.15983208,86877.0,86876.0,0.83367]
[1765955369265,0.02533208,86877.0,86876.0,0.83367]
[1765955369460,0.15731208,86877.0,86876.0,0.83367]
[1765955369859,0.02533208,86877.0,86876.0,0.83367]
[1765955370069,0.02533208,86877.0,86876.0,0.83267]
[1765955370264,0.02533208,86877.0,86876.0,0.83367]
[1765955370868,0.02533208,86877.0,86876.0,0.83267]
[1765955371067,0.15607208,86877.0,86876.0,0.83367]
[1765955371271,0.02533208,86877.0,86876.0,0.83367]
[1765955373280,0.28187208,86877.0,86876.0,0.83367]
[1765955375280,0.28187208,86877.0,86876.0,0.83267]
[1765955375575,0.28187208,86877.0,86876.0,0.83367]
[1765955376079,0.28187208,86877.0,86876.0,0.83167]
[1765955376269,0.28287208,86877.0,86876.0,0.83167]
[1765955377075,0.28187208,86877.0,86876.0,0.83267]
[1765955377877,0.28187208,86877.0,86876.0,0.83367]
[1765955379169,0.28187208,86877.0,86876.0,0.83267]
[1765955380268,0.28187208,86877.0,86876.0,0.83167]
[1765955381283,0.28187208,86877.0,86876.0,0.83267]
[1765955381779,0.28187208,86877.0,86876.0,0.83367]
[1765955382374,0.28187208,86877.0,86876.0,0.83267]
[1765955382574,0.28187208,86877.0,86876.0,0.83367]
[1765955382981,0.28187208,86877.0,86876.0,0.83267]
[1765955383181,0.28187208,86877.0,86876.0,0.83367]
[1765955385580,0.28187208,86877.0,86876.0,0.83267]
[1765955386180,0.28187208,86877.0,86876.0,0.83167]
[1765955386589,0.2321743,86876.0,86875.0,0.09443]
[1765955386883,0.25742715,86876.0,86875.0,0.09443]
[1765955387282,0.25742715,86876.0,86875.0,0.21878]
[1765955387688,0.25742715,86876.0,86875.0,0.34323]
[1765955387887,0.32035815,86876.0,86875.0,0.34323]
[1765955388386,0.25842715,86876.0,86875.0,0.34323]
[1765955388585,0.32035815,86876.0,86875.0,0.34323]
[1765955388790,0.14863715,86876.0,86875.0,0.34323]
[1765955388993,0.25634715,86876.0,86875.0,0.34323]
[1765955389986,0.25534715,86876.0,86875.0,0.34323]
[1765955391782,0.25534715,86876.0,86875.0,0.34423]
[1765955392182,0.25534715,86876.0,86875.0,0.34323]
[1765955395003,0.25534715,86876.0,86875.0,0.34423]
[1765955395593,0.25534715,86876.0,86875.0,0.34323]
[1765955396796,0.02525285,86876.0,86875.0,0.34323]
[1765955397093,0.02557564,86877.0,86876.0,0.2603143]
[1765955397296,0.22505564,86877.0,86876.0,0.2603143]
[1765955398303,0.12532564,86877.0,86876.0,0.2603143]
[1765955398502,0.12532564,86877.0,86876.0,0.2613143]
[1765955399499,0.22313564,86877.0,86876.0,0.2498]
[1765955400211,0.22313564,86877.0,86876.0,0.2508]
[1765955400705,0.22313564,86877.0,86876.0,0.2488]
[1765955402595,0.2006343,86876.0,86875.0,0.09443]
[1765955402797,0.22613071,86876.0,86875.0,0.34323]
[1765955407605,0.58693071,86876.0,86875.0,0.34323]
[1765955413212,0.64886171,86876.0,86875.0,0.34323]
[1765955415199,0.1778047,86873.0,86872.0,0.09472]
[1765955415409,0.20330111,86873.0,86872.0,0.09472]
[1765955415605,0.20330111,86873.0,86872.0,0.31523]
[1765955415811,0.16464,86866.0,86865.0,0.31494]
[1765955416008,0.55093641,86866.0,86865.0,0.31494]
[1765955416405,0.56245201,86866.0,86865.0,0.31494]
[1765955416602,0.56245201,86866.0,86865.0,0.09443]
[1765955416603,0.57367209,86866.0,86865.0,0.09443]